bitfinex/quotes_SOLUSD_20250210
["timestamp","ask_amount","ask_price","bid_price","bid_amount"]
[1739206465351,21.08128693,203.55,203.54,0.063]
[1739206466862,21.33226693,203.55,203.54,0.063]
[1739206467328,27.24496693,203.55,203.54,0.063]
[1739206468533,21.33226693,203.55,203.54,0.063]
[1739206468754,26.24496693,203.55,203.54,0.063]
[1739206469452,27.24496693,203.55,203.54,0.063]
[1739206470633,26.24496693,203.55,203.54,0.063]
[1739206470833,21.33226693,203.55,203.54,0.063]
[1739206474573,26.24496693,203.55,203.54,0.063]
[1739206477840,0.37647,203.47,203.4,0.063]
[1739206478034,13.78831853,203.41,203.4,0.063]
[1739206480146,18.70441853,203.41,203.4,0.063]
[1739206480347,13.78831853,203.41,203.4,0.063]
[1739206481350,18.70441853,203.41,203.4,0.063]
[1739206481563,18.82990853,203.41,203.4,0.063]
[1739206483246,0.37647,203.37,203.33,0.063]
[1739206483448,0.50196,203.34,203.33,0.063]
[1739206483647,0.37647,203.34,203.33,0.063]
[1739206484247,21.33226693,203.34,203.33,0.063]
[1739206484462,13.91380853,203.34,203.33,0.063]
[1739206487162,13.53733853,203.34,203.33,0.063]
[1739206493268,21.33226693,203.34,203.33,0.063]
[1739206493679,13.91380853,203.34,203.33,0.063]
[1739206495678,21.33226693,203.34,203.33,0.063]
[1739206496175,13.91380853,203.34,203.33,0.063]
[1739206500078,21.33226693,203.34,203.33,0.063]
[1739206501879,13.91380853,203.34,203.33,0.063]
[1739206504288,26.25006693,203.34,203.33,0.063]
[1739206504597,21.33226693,203.34,203.33,0.063]
[1739206505076,13.91380853,203.34,203.33,0.063]
[1739206507376,13.78831853,203.34,203.33,0.063]
[1739206508178,83.1,203.39,203.33,7.4814584]
[1739206508573,13.78831853,203.38,203.33,7.4814584]
[1739206511793,0.12549,203.37,203.33,0.063]
[1739206512378,0.12549,203.37,203.33,7.4814584]
[1739206514400,0.25098,203.38,203.34,7.4184584]
[1739206516875,0.25098,203.38,203.35,7.4184584]
[1739206517801,0.15549,203.4,203.35,7.4184584]
[1739206518298,0.25098,203.39,203.35,7.4184584]
[1739206519197,0.03,203.4,203.37,7.4184584]
[1739206519390,0.03,203.4,203.39,7.4184584]
[1739206522898,0.03,203.4,203.39,8.9297584]
[1739206524195,0.03,203.4,203.39,38.603592]
[1739206524383,0.03,203.4,203.39,39.34078123]
[1739206524585,0.12549,203.47,203.42,20.0]
[1739206524785,0.12549,203.47,203.46,7.4184584]
[1739206525401,0.12549,203.47,203.45,7.4184584]
[1739206526910,0.12549,203.47,203.44,7.4184584]
[1739206527492,0.12549,203.47,203.43,7.4184584]
[1739206528206,13.78831853,203.47,203.42,7.4184584]
[1739206528391,13.78831853,203.47,203.41,7.4184584]
[1739206528901,13.78831853,203.47,203.4,27.4184584]
[1739206529087,13.78831853,203.47,203.41,7.4184584]
[1739206530313,0.12549,203.45,203.4,27.4184584]
[1739206530608,0.12549,203.44,203.39,1.5113]
[1739206530793,13.53733853,203.42,203.39,1.5113]
[1739206530992,13.53733853,203.42,203.37,7.4184584]
[1739206531408,13.53733853,203.42,203.38,7.4184584]
[1739206531795,13.53733853,203.42,203.38,27.4184584]
[1739206532898,13.53733853,203.42,203.38,20.0]
[1739206533096,13.53733853,203.42,203.39,7.4184584]
[1739206533498,13.53733853,203.42,203.4,7.4184584]
[1739206536521,7.4184584,203.47,203.4,7.4184584]
[1739206536697,7.4184584,203.49,203.4,7.4184584]
[1739206537230,13.78831853,203.48,203.4,7.4184584]
[1739206538321,13.78831853,203.48,203.42,7.4184584]
[1739206538694,0.12549,203.47,203.42,7.4184584]
[1739206539401,0.12549,203.47,203.35,133.1789]
[1739206539402,0.12549,203.41,203.35,7.4184584]
[1739206539596,0.12549,203.41,203.34,1.5113]
[1739206539807,13.53733853,203.39,203.34,1.5113]
[1739206541828,13.53733853,203.39,203.35,7.4184584]
[1739206542139,0.12549,203.4,203.35,7.4184584]
[1739206542431,13.78831853,203.44,203.35,7.4184584]
[1739206543922,13.68272574,203.44,203.35,7.4184584]
[1739206544120,13.66282853,203.44,203.35,7.4184584]
[1739206544317,1.6316,203.49,203.42,7.4184584]
[1739206544506,13.66282853,203.48,203.42,7.4184584]
[1739206545913,13.66282853,203.48,203.44,7.4184584]
[1739206545914,0.12549,203.48,203.44,7.4184584]
[1739206546114,0.12549,203.48,203.46,7.4184584]
[1739206546326,0.25098,203.48,203.46,7.4184584]
[1739206546821,6.641,203.52,203.46,7.4184584]
[1739206546822,102.93362668,203.55,203.46,7.4184584]
[1739206547002,102.93362668,203.55,203.48,7.4184584]
[1739206547507,13.78831853,203.54,203.48,7.4184584]
[1739206547707,13.78831853,203.54,203.49,7.4184584]
[1739206547927,13.78831853,203.54,203.5,7.4184584]
[1739206548733,13.78831853,203.54,203.49,7.4184584]
[1739206549205,13.78831853,203.54,203.48,7.4184584]
[1739206549412,0.12549,203.53,203.48,7.4184584]
[1739206549916,0.12549,203.53,203.41,2.3002157]
[1739206549917,13.41184853,203.48,203.43,7.4184584]
[1739206551643,13.41184853,203.46,203.41,8.9814584]
[1739206552251,13.41184853,203.46,203.39,7.4184584]
[1739206552252,13.41184853,203.44,203.39,7.4184584]
[1739206552539,13.41184853,203.42,203.37,7.4184584]
[1739206552707,13.41184853,203.42,203.4,20.0]
[1739206553232,13.41184853,203.42,203.41,20.0]
[1739206554628,97.1594584,203.49,203.41,7.4184584]
[1739206554830,89.741,203.49,203.43,7.4184584]
[1739206555138,13.66282853,203.48,203.43,7.4184584]
[1739206555326,13.66282853,203.48,203.42,7.4184584]
[1739206556736,13.66282853,203.48,203.43,7.4184584]
[1739206556938,13.66282853,203.48,203.46,7.4184584]
[1739206557823,20.68146828,203.55,203.47,7.4184584]
[1739206558023,20.68146828,203.55,203.49,7.4184584]
[1739206558228,13.78831853,203.54,203.49,7.4184584]
[1739206558546,13.78831853,203.54,203.48,7.4184584]
[1739206559524,21.20677693,203.54,203.47,7.4184584]
[1739206559735,25.39073853,203.54,203.47,11.60242]
[1739206559933,13.41184853,203.52,203.46,11.60242]
[1739206560129,25.39073853,203.52,203.45,11.60242]
[1739206560936,25.39073853,203.52,203.46,11.60242]
[1739206560937,13.78831853,203.52,203.46,11.60242]
[1739206561634,25.39073853,203.52,203.45,11.60242]
[1739206564641,0.25098,203.46,203.41,0.063]
[1739206564845,13.66282853,203.46,203.41,0.063]
[1739206565227,25.26524853,203.46,203.42,20.0]
[1739206566748,13.66282853,203.46,203.41,0.063]
[1739206567330,0.25098,203.44,203.41,0.063]
[1739206568445,13.53733853,203.43,203.41,0.063]
[1739206568653,13.66282853,203.42,203.41,0.063]
[1739206568951,13.78831853,203.42,203.41,0.063]
[1739206569649,13.41184853,203.42,203.41,11.66542]
[1739206570027,14.283,203.54,203.41,11.66542]
[1739206570028,20.68146828,203.55,203.44,20.0]
[1739206570224,20.68146828,203.55,203.5,11.60242]
[1739206570435,13.78831853,203.54,203.49,11.60242]
[1739206570959,0.03,203.52,203.5,11.60242]
[1739206574337,0.03,203.52,203.49,11.60242]
[1739206578945,0.03,203.52,203.44,21.5934]
[1739206578946,0.03,203.52,203.48,11.60242]
[1739206579252,0.03,203.52,203.44,21.5934]
[1739206579253,0.03,203.52,203.49,11.60242]
[1739206580853,0.03,203.52,203.44,21.5934]
[1739206580854,0.03,203.52,203.5,11.60242]
[1739206582555,0.03,203.52,203.49,11.60242]
[1739206582755,0.03,203.52,203.48,11.60242]
[1739206583643,0.03,203.52,203.49,7.42479738]
[1739206585143,0.03,203.52,203.48,7.42479738]
[1739206586152,0.15549,203.52,203.48,7.42479738]
[1739206586358,0.15549,203.52,203.47,7.42479738]
[1739206586534,0.37647,203.5,203.46,7.42479738]
[1739206586730,13.41184853,203.49,203.46,7.42479738]
[1739206586962,13.41184853,203.49,203.47,7.42479738]
[1739206587845,0.25098,203.48,203.46,7.42479738]
[1739206589057,0.03,203.52,203.46,7.42479738]
[1739206590959,0.37647,203.5,203.47,7.42479738]
[1739206591254,0.37647,203.5,203.46,7.42479738]
[1739206594261,0.37647,203.5,203.46,7.42479738]
[1739206595961,0.37647,203.5,203.47,7.42479738]
[1739206596361,0.40647,203.5,203.47,7.42479738]
[1739206597357,0.40647,203.5,203.44,21.6564]
[1739206597578,0.03,203.5,203.49,7.42479738]
[1739206598646,0.03,203.5,203.49,37.1239869]
[1739206600951,0.03,203.5,203.49,37.86084282]
[1739206601254,0.03,203.5,203.49,8.1616533]
[1739206602661,0.03,203.5,203.49,37.86084282]
[1739206603146,0.03,203.5,203.49,8.1616533]
[1739206604866,0.03,203.5,203.49,37.86084282]
[1739206607967,0.03,203.52,203.51,20.0]
[1739206608160,0.03,203.52,203.51,27.42479738]
[1739206610277,0.03,203.52,203.51,28.62758448]
[1739206611974,0.03,203.52,203.51,27.42479738]
[1739206613471,0.03,203.61,203.54,0.12549]
[1739206613670,0.03,203.63,203.62,20.0]
[1739206613873,0.03,203.63,203.62,27.42479738]
[1739206614073,0.03,203.63,203.62,28.16122435]
[1739206614273,0.03,203.68,203.67,1.12549]
[1739206614461,7.62726165,203.71,203.7,19.34137045]
[1739206614865,7.62726165,203.71,203.7,26.76616783]
[1739206616277,7.62726165,203.71,203.7,56.46535735]
[1739206616459,15.4345233,203.72,203.7,56.46535735]
[1739206616652,15.4345233,203.72,203.71,37.1239869]
[1739206617288,77.4235965,203.81,203.74,20.0]
[1739206617289,13.66282853,203.81,203.74,20.0]
[1739206617478,0.12549,203.8,203.78,7.42479738]
[1739206617682,0.12549,203.8,203.78,11.56779524]
[1739206619357,0.12549,203.8,203.77,11.56779524]
[1739206619770,0.12549,203.8,203.76,11.56779524]
[1739206620278,0.25098,203.8,203.76,11.56779524]
[1739206620459,0.25098,203.81,203.69,44.9]
[1739206620460,0.37647,203.79,203.74,11.56779524]
[1739206620856,0.12549,203.76,203.73,11.56779524]
[1739206621057,13.66282853,203.75,203.71,11.56779524]
[1739206621580,0.25098,203.75,203.71,11.56779524]
[1739206621876,0.25098,203.75,203.72,11.56779524]
[1739206622362,0.25098,203.75,203.73,11.56779524]
[1739206622972,13.66282853,203.75,203.73,11.56779524]
[1739206623284,13.66282853,203.75,203.72,11.56779524]
[1739206623657,13.66282853,203.75,203.73,11.56779524]
[1739206625582,0.25098,203.75,203.74,11.56779524]
[1739206625989,13.44184853,203.81,203.74,11.56779524]
[1739206626287,13.44184853,203.81,203.8,11.56779524]
[1739206627290,0.03,203.81,203.8,11.56779524]
[1739206629775,0.03,203.81,203.78,11.56779524]
[1739206630681,0.03,203.81,203.77,11.56779524]
[1739206630986,0.25098,203.78,203.73,11.56779524]
[1739206631165,0.25098,203.76,203.71,11.56779524]
[1739206631879,13.41184853,203.73,203.67,11.56779524]
[1739206632075,0.25098,203.71,203.66,11.56779524]
[1739206632592,13.66282853,203.73,203.67,11.56779524]
[1739206633582,0.12549,203.72,203.67,11.56779524]
[1739206633890,0.25098,203.71,203.65,11.56779524]
[1739206635491,0.12549,203.69,203.65,11.56779524]
[1739206635694,0.25098,203.69,203.64,11.56779524]
[1739206635897,0.25098,203.69,203.63,11.56779524]
[1739206636476,13.41184853,203.68,203.62,11.56779524]
[1739206636986,11.56779524,203.68,203.62,11.56779524]
[1739206637286,13.53733853,203.65,203.62,11.56779524]
[1739206637900,13.53733853,203.65,203.63,11.56779524]
[1739206638878,13.53733853,203.65,203.62,11.56779524]
[1739206639078,0.12549,203.63,203.6,11.56779524]
[1739206639295,13.53733853,203.63,203.6,11.56779524]
[1739206639598,11.56779524,203.7,203.62,11.56779524]
[1739206639840,13.78831853,203.69,203.62,11.56779524]
[1739206640099,25.35611377,203.69,203.62,11.56779524]
[1739206640271,25.35611377,203.69,203.61,11.56779524]
[1739206640272,13.78831853,203.67,203.61,11.56779524]
[1739206640689,25.35611377,203.67,203.6,11.56779524]
[1739206641198,11.56779524,203.66,203.59,11.56779524]
[1739206641404,13.78831853,203.67,203.57,11.56779524]
[1739206641405,13.78831853,203.63,203.57,11.56779524]
[1739206642789,0.12549,203.62,203.57,11.56779524]
[1739206643698,0.12549,203.62,203.58,11.56779524]
[1739206644192,0.12549,203.62,203.57,11.56779524]
[1739206644714,4.9101,203.66,203.57,11.56779524]
[1739206644715,11.56779524,203.7,203.6,11.56779524]
[1739206644908,13.78831853,203.69,203.62,11.56779524]
[1739206645695,25.35611377,203.69,203.61,11.56779524]
[1739206646001,13.78831853,203.66,203.61,11.56779524]
[1739206646717,13.78831853,203.66,203.6,11.56779524]
[1739206646903,13.78831853,203.66,203.61,11.56779524]
[1739206648105,0.12549,203.65,203.61,11.56779524]
[1739206648306,0.12549,203.65,203.59,11.56779524]
[1739206650412,0.12549,203.65,203.6,11.56779524]
[1739206655116,11.69328524,203.65,203.58,11.56779524]
[1739206655298,13.78831853,203.64,203.58,11.56779524]
[1739206657219,13.78831853,203.64,203.6,0.063]
[1739206658922,0.12549,203.63,203.6,0.063]
[1739206659111,13.91380853,203.61,203.6,0.063]
[1739206669340,7.42007778,203.66,203.6,0.063]
[1739206669714,13.78831853,203.65,203.6,0.063]
[1739206673115,0.12549,203.64,203.6,0.063]
[1739206674449,0.12549,203.64,203.61,7.42007778]
[1739206680418,13.78831853,203.65,203.61,7.42007778]
[1739206680632,0.25098,203.65,203.62,7.42007778]
[1739206683047,0.25098,203.65,203.63,7.42007778]
[1739206686838,0.25098,203.65,203.62,7.42007778]
[1739206687041,13.66282853,203.63,203.6,0.063]
[1739206687446,7.42007778,203.68,203.61,7.42007778]
[1739206687746,13.78831853,203.67,203.6,7.48307778]
[1739206688125,21.20839631,203.67,203.6,0.063]
[1739206688548,13.78831853,203.65,203.6,0.063]
[1739206690352,26.11879631,203.65,203.6,0.063]
[1739206690533,0.12549,203.64,203.6,0.063]
[1739206696033,0.12549,203.64,203.61,7.42007778]
[1739206696246,13.66282853,203.65,203.63,7.42007778]
[1739206697051,27.45007778,203.71,203.63,7.42007778]
[1739206697263,13.78831853,203.7,203.63,7.42007778]
[1739206697577,13.78831853,203.7,203.64,7.42007778]
[1739206698750,0.12549,203.69,203.62,7.42007778]
[1739206698948,0.12549,203.65,203.61,1.6191]
[1739206699168,0.25098,203.65,203.61,1.6191]
[1739206699370,13.66282853,203.65,203.61,1.6191]
[1739206699577,0.25098,203.65,203.61,9.03917778]
[1739206700271,13.66282853,203.65,203.61,9.03917778]
[1739206701473,13.66282853,203.65,203.61,1.6191]
[1739206701661,7.42007778,203.7,203.62,7.42007778]
[1739206702777,13.78831853,203.69,203.62,7.42007778]
[1739206703668,13.78831853,203.69,203.64,7.42007778]
[1739206704972,13.78831853,203.69,203.63,7.42007778]
[1739206705777,0.12549,203.68,203.63,7.42007778]
[1739206706856,0.12549,203.68,203.61,1.6191]
[1739206706857,0.12549,203.68,203.62,7.42007778]
[1739206707383,0.12549,203.66,203.62,7.42007778]
[1739206708070,0.12549,203.66,203.61,9.03917778]
[1739206708761,0.12549,203.66,203.61,7.42007778]
[1739206709573,0.12549,203.64,203.61,7.42007778]
[1739206709781,0.12549,203.64,203.6,0.063]
[1739206713480,0.25098,203.64,203.6,0.063]
[1739206715871,4.9097,203.68,203.61,7.42007778]
[1739206717259,13.91380853,203.67,203.61,7.42007778]
[1739206720195,13.91380853,203.67,203.6,0.063]
[1739206720196,13.78831853,203.67,203.63,7.42007778]
[1739206722978,13.78831853,203.67,203.65,7.42007778]
[1739206725690,49.6428066,203.71,203.65,7.42007778]
[1739206725895,22.22272882,203.71,203.65,7.42007778]
[1739206726191,13.78831853,203.7,203.65,7.42007778]
[1739206726399,13.78831853,203.7,203.64,7.42007778]
[1739206728092,0.12549,203.69,203.65,7.42007778]
[1739206728865,22.22272882,203.71,203.64,21.5516]
[1739206729089,22.22272882,203.71,203.7,7.42007778]
[1739206731589,0.03,203.71,203.7,7.42007778]
[1739206738679,0.28098,203.71,203.69,7.42007778]
[1739206738880,0.28098,203.71,203.68,7.42007778]
[1739206738881,13.69282853,203.71,203.68,7.42007778]
[1739206739712,13.69282853,203.71,203.67,7.42007778]
[1739206740808,0.12549,203.7,203.67,7.42007778]
[1739206741009,13.78831853,203.7,203.67,7.42007778]
[1739206741193,0.37647,203.69,203.66,7.42007778]
[1739206741908,0.37647,203.67,203.65,0.063]
[1739206742201,13.78831853,203.66,203.65,0.063]
[1739206742396,13.91380853,203.66,203.65,0.063]
[1739206742780,0.03,203.71,203.65,7.48307778]
[1739206742983,0.15549,203.71,203.65,0.063]
[1739206743183,13.81831853,203.71,203.65,0.063]
[1739206743400,13.78831853,203.69,203.65,0.063]
[1739206746405,0.12549,203.68,203.65,0.063]
[1739206747490,0.25098,203.69,203.67,7.42007778]
[1739206747819,0.25098,203.69,203.66,7.42007778]
[1739206748180,0.25098,203.69,203.65,0.063]
[1739206748486,0.25098,203.69,203.66,7.42007778]
[1739206748680,0.12549,203.68,203.65,0.063]
[1739206749307,0.25098,203.67,203.65,0.063]
[1739206749498,13.66282853,203.67,203.65,0.063]
[1739206750786,0.12549,203.66,203.65,0.063]
[1739206751283,13.91380853,203.66,203.65,0.063]
[1739206751515,21.33388631,203.66,203.6,0.063]
[1739206751723,13.78831853,203.61,203.6,0.063]
[1739206752093,83.1,203.65,203.6,7.48307778]
[1739206752291,13.91380853,203.64,203.62,7.42007778]
[1739206752802,22.19653095,203.69,203.62,7.42007778]
[1739206753104,0.50196,203.68,203.63,7.42007778]
[1739206753284,0.12549,203.66,203.63,7.42007778]
[1739206753910,0.12549,203.66,203.62,7.42007778]
[1739206755382,0.12549,203.66,203.63,7.42007778]
[1739206756909,22.19653095,203.69,203.63,7.42007778]
[1739206757108,22.19653095,203.69,203.65,7.42007778]
[1739206757613,13.66282853,203.68,203.65,7.42007778]
[1739206757997,13.78831853,203.65,203.6,0.063]
[1739206758195,0.37647,203.61,203.6,0.063]
[1739206758407,13.66282853,203.61,203.6,0.063]
[1739206758897,7.42007778,203.66,203.6,0.063]
[1739206759102,95.42977778,203.68,203.6,0.063]
[1739206759306,0.25098,203.63,203.6,0.063]
[1739206761502,0.25098,203.63,203.6,7.48307778]
[1739206762714,0.25098,203.63,203.6,0.063]
[1739206762911,7.79654778,203.61,203.6,0.063]
[1739206763113,21.20839631,203.61,203.6,0.063]
[1739206763292,26.11969631,203.61,203.6,0.063]
[1739206766118,21.33388631,203.61,203.6,0.063]
[1739206767223,26.24518631,203.61,203.6,0.063]
[1739206769118,21.33388631,203.61,203.6,0.063]
[1739206771416,26.24518631,203.61,203.6,0.063]
[1739206778622,110.34518631,203.61,203.6,0.063]
[1739206778820,140.02549743,203.61,203.6,0.063]
[1739206779220,0.12549,203.58,203.57,0.063]
[1739206779408,21.20839631,203.58,203.57,0.063]
[1739206780328,26.12039631,203.58,203.57,0.063]
[1739206782328,0.12549,203.56,203.49,0.063]
[1739206782630,13.53733853,203.5,203.49,0.063]
[1739206782832,13.66282853,203.5,203.49,0.063]
[1739206784435,13.91380853,203.5,203.49,0.063]
[1739206785404,21.33388631,203.5,203.49,0.063]
[1739206785614,26.24788631,203.5,203.49,0.063]
[1739206787329,21.33388631,203.5,203.49,0.063]
[1739206787525,13.91380853,203.5,203.49,0.063]
[1739206789920,18.82780853,203.5,203.49,0.063]
[1739206790639,26.24788631,203.5,203.49,0.063]
[1739206791821,21.33388631,203.5,203.49,0.063]
[1739206794917,26.24788631,203.5,203.49,0.063]
[1739206796440,21.33388631,203.5,203.49,0.063]
[1739206797142,13.91380853,203.5,203.49,0.063]
[1739206800427,0.12549,203.5,203.49,7.48307778]
[1739206800731,4.912,203.59,203.49,7.48307778]
[1739206800932,13.78831853,203.58,203.52,7.42007778]
[1739206801128,7.42007778,203.57,203.5,8.92107778]
[1739206801432,13.78831853,203.56,203.5,1.501]
[1739206801641,13.78831853,203.56,203.5,8.92107778]
[1739206802164,13.78831853,203.56,203.52,7.42007778]
[1739206802648,13.78831853,203.56,203.5,1.501]
[1739206802830,0.12549,203.55,203.53,7.42007778]
[1739206803034,0.12549,203.55,203.5,8.92107778]
[1739206803632,0.12549,203.55,203.51,7.42007778]
[1739206804467,0.12549,203.55,203.52,7.42007778]
[1739206805853,0.37647,203.54,203.5,1.501]
[1739206806153,13.78831853,203.5,203.49,0.063]
[1739206806455,21.20839631,203.5,203.49,0.063]
[1739206807344,26.12239631,203.5,203.49,0.063]
[1739206808727,13.41184853,203.45,203.44,0.063]
[1739206808931,21.20839631,203.45,203.44,0.063]
[1739206809828,21.33388631,203.45,203.44,0.063]
[1739206810657,26.24908631,203.45,203.44,0.063]
[1739206810953,13.91380853,203.45,203.44,0.063]
[1739206812958,26.24908631,203.45,203.44,0.063]
[1739206814269,21.33388631,203.45,203.44,0.063]
[1739206814571,26.24908631,203.45,203.44,0.063]
[1739206816535,83.22549,203.44,203.41,0.063]
[1739206816734,27.79654778,203.42,203.41,0.063]
[1739206816937,41.20839631,203.42,203.41,0.063]
[1739206818579,41.20839631,203.42,203.4,0.063]
[1739206818580,13.78831853,203.41,203.4,0.063]
[1739206818782,21.33388631,203.41,203.4,0.063]
[1739206819079,22.33388631,203.41,203.4,0.063]
[1739206819243,52.01419743,203.41,203.4,0.063]
[1739206819765,38.16841577,203.41,203.4,0.063]
[1739206820156,21.50196,203.37,203.29,0.063]
[1739206820366,46.54111215,203.37,203.29,0.063]
[1739206820561,51.45821215,203.37,203.29,0.063]
[1739206822964,50.45821215,203.37,203.29,0.063]
[1739206823547,52.45821215,203.37,203.29,0.063]
[1739206824558,51.45821215,203.37,203.29,0.063]
[1739206824765,1.37647,203.35,203.29,0.063]
[1739206824952,29.19562215,203.34,203.29,0.063]
[1739206825153,34.11342215,203.34,203.29,0.063]
[1739206826849,34.23891215,203.34,203.29,0.063]
[1739206827647,1.0,203.24,203.23,0.063]
[1739206827858,2.0,203.22,203.14,0.063]
[1739206828170,25.54111215,203.2,203.14,0.063]
[1739206829472,30.46231215,203.2,203.14,0.063]
[1739206829673,34.24231215,203.2,203.14,0.063]
[1739206830151,14.91380853,203.19,203.14,0.063]
[1739206830351,13.91380853,203.15,203.14,0.063]
[1739206831656,3.78,203.2,203.14,11.69030362]
[1739206831866,3.78,203.2,203.15,11.62730362]
[1739206832071,11.62730362,203.24,203.17,11.62730362]
[1739206832261,13.91380853,203.23,203.17,11.62730362]
[1739206832776,13.91380853,203.23,203.18,11.62730362]
[1739206833475,13.91380853,203.23,203.19,11.62730362]
[1739206834764,13.91380853,203.23,203.2,11.62730362]
[1739206835075,13.91380853,203.23,203.21,11.62730362]
[1739206835485,13.91380853,203.23,203.22,11.62730362]
[1739206835685,0.37647,203.23,203.21,11.62730362]
[1739206835849,0.37647,203.23,203.22,11.62730362]
[1739206836772,0.50196,203.23,203.22,11.62730362]
[1739206837774,0.37647,203.22,203.2,11.62730362]
[1739206837957,0.37647,203.22,203.18,13.13320362]
[1739206838167,0.12549,203.2,203.18,13.13320362]
[1739206838371,0.12549,203.2,203.18,1.5059]
[1739206838874,0.12549,203.2,203.18,13.13320362]
[1739206839459,0.12549,203.2,203.18,1.5059]
[1739206839765,13.41184853,203.19,203.18,1.5059]
[1739206839979,13.78831853,203.19,203.18,1.5059]
[1739206840857,0.37647,203.19,203.18,1.5059]
[1739206841272,0.50196,203.19,203.18,1.5059]
[1739206843058,0.25098,203.18,203.17,11.62730362]
[1739206843776,0.37647,203.19,203.16,11.62730362]
[1739206844189,0.37647,203.19,203.17,11.62730362]
[1739206844371,0.37647,203.19,203.18,11.62730362]
[1739206845986,0.56496,203.19,203.18,11.62730362]
[1739206846393,0.18849,203.19,203.18,11.62730362]
[1739206847064,0.063,203.19,203.18,11.62730362]
[1739206848960,0.063,203.19,203.18,19.84610362]
[1739206850688,11.06098116,203.32,203.21,20.0]
[1739206850868,13.78831853,203.31,203.27,11.62730362]
[1739206851794,13.78831853,203.31,203.26,11.62730362]
[1739206852006,13.78831853,203.31,203.24,11.62730362]
[1739206852189,0.37647,203.27,203.23,11.62730362]
[1739206852565,0.25098,203.25,203.24,11.62730362]
[1739206853186,48.22333226,203.32,203.24,11.62730362]
[1739206853485,0.12549,203.31,203.26,11.62730362]
[1739206853879,13.78831853,203.31,203.27,11.62730362]
[1739206854398,13.78831853,203.31,203.26,11.62730362]
[1739206855699,13.78831853,203.31,203.28,11.62730362]
[1739206855884,13.78831853,203.31,203.3,11.62730362]
[1739206856069,0.25098,203.31,203.3,11.62730362]
[1739206858068,13.85131853,203.31,203.3,11.62730362]
[1739206858263,13.66282853,203.3,203.27,13.25900362]
[1739206858575,13.66282853,203.3,203.26,11.62730362]
[1739206858772,0.37647,203.26,203.25,11.62730362]
[1739206859191,13.91380853,203.26,203.24,11.62730362]
[1739206859370,0.37647,203.25,203.23,11.62730362]
[1739206859575,13.41184853,203.24,203.23,11.62730362]
[1739206859906,0.37647,203.23,203.22,11.62730362]
[1739206860263,0.37647,203.23,203.19,11.62730362]
[1739206860264,13.78831853,203.23,203.19,11.62730362]
[1739206860496,0.37647,203.19,203.18,11.65730362]
[1739206861972,0.37647,203.19,203.18,0.03]
[1739206862174,13.78831853,203.19,203.18,0.03]
[1739206862884,13.91380853,203.19,203.18,0.03]
[1739206863078,30.46261215,203.19,203.18,0.03]
[1739206863709,13.91380853,203.19,203.18,0.03]
[1739206864015,18.83530853,203.19,203.18,0.03]
[1739206864176,30.46261215,203.19,203.18,0.03]
[1739206865673,0.12549,203.16,203.14,0.063]
[1739206865878,13.91380853,203.15,203.14,0.063]
[1739206866179,25.54111215,203.15,203.14,0.063]
[1739206866788,13.91380853,203.15,203.14,0.063]
[1739206867306,25.54111215,203.15,203.14,0.063]
[1739206867604,13.91380853,203.15,203.14,0.063]
[1739206870079,18.83620853,203.15,203.14,0.063]
[1739206870603,13.91380853,203.15,203.14,0.063]
[1739206871225,18.83620853,203.15,203.14,0.063]
[1739206871822,30.46351215,203.15,203.14,0.063]
[1739206872486,31.46351215,203.15,203.14,0.063]
[1739206872696,30.46351215,203.15,203.14,0.063]
[1739206872876,18.83620853,203.15,203.14,0.063]
[1739206873082,13.91380853,203.15,203.14,0.063]
[1739206874805,13.91380853,203.15,203.14,11.69030362]
[1739206874986,0.50196,203.15,203.14,11.69030362]
[1739206875401,0.37647,203.15,203.14,11.69030362]
[1739206875905,13.91380853,203.15,203.14,0.063]
[1739206877209,30.46351215,203.15,203.14,0.063]
[1739206877398,31.46351215,203.15,203.14,0.063]
[1739206878191,30.46351215,203.15,203.14,0.063]
[1739206879609,25.54111215,203.15,203.14,0.063]
[1739206879807,13.91380853,203.15,203.14,0.063]
[1739206880495,0.50196,203.15,203.14,0.063]